[Event "Live Chess"]
[Site "Chess.com"]
[Date "2010.12.10"]
[Round "-"]
[White "ChessNut71"]
[Black "hipposcottimus"]
[Result "0-1"]
[CurrentPosition "6k1/pp3ppp/2p2q2/8/1P1p4/5K2/5PP1/8 w - -"]
[Timezone "UTC"]
[ECO "C20"]
[ECOUrl "https://www.chess.com/openings/Kings-Pawn-Opening-Leonardis-Variation"]
[UTCDate "2010.12.10"]
[UTCTime "05:09:35"]
[WhiteElo "1514"]
[BlackElo "1659"]
[TimeControl "60"]
[Termination "hipposcottimus won by resignation"]
[StartTime "05:09:35"]
[EndDate "2010.12.10"]
[EndTime "05:11:34"]
[Link "https://www.chess.com/game/live/75803825"]

1. e4 {[%clk 0:01:00]} 1... e5 {[%clk 0:01:00]} 2. d3 {[%clk 0:00:59.3]} 2... Nc6 {[%clk 0:00:59.8]} 3. Nf3 {[%clk 0:00:59]} 3... Nf6 {[%clk 0:00:59.5]} 4. Be2 {[%clk 0:00:59]} 4... d5 {[%clk 0:00:59.2]} 5. Nc3 {[%clk 0:00:58.9]} 5... d4 {[%clk 0:00:58.3]} 6. Nd5 {[%clk 0:00:57.4]} 6... Nxd5 {[%clk 0:00:55.8]} 7. exd5 {[%clk 0:00:56.7]} 7... Ne7 {[%clk 0:00:55.6]} 8. c3 {[%clk 0:00:56]} 8... Nxd5 {[%clk 0:00:55]} 9. cxd4 {[%clk 0:00:54.7]} 9... exd4 {[%clk 0:00:53]} 10. O-O {[%clk 0:00:53.3]} 10... Bc5 {[%clk 0:00:51.9]} 11. b3 {[%clk 0:00:51.1]} 11... O-O {[%clk 0:00:51.5]} 12. Bd2 {[%clk 0:00:46.6]} 12... Nf6 {[%clk 0:00:51.2]} 13. b4 {[%clk 0:00:45.8]} 13... Bb6 {[%clk 0:00:49]} 14. Ne5 {[%clk 0:00:44.5]} 14... Re8 {[%clk 0:00:45]} 15. Nf3 {[%clk 0:00:42]} 15... c6 {[%clk 0:00:43.7]} 16. Re1 {[%clk 0:00:42]} 16... Bc7 {[%clk 0:00:43.1]} 17. h3 {[%clk 0:00:41.7]} 17... Nh5 {[%clk 0:00:39.4]} 18. Nh2 {[%clk 0:00:39.2]} 18... Bxh2+ {[%clk 0:00:37.7]} 19. Kxh2 {[%clk 0:00:37.7]} 19... Qd6+ {[%clk 0:00:37.4]} 20. Kg1 {[%clk 0:00:35.3]} 20... Nf4 {[%clk 0:00:37]} 21. Bxf4 {[%clk 0:00:32.9]} 21... Qxf4 {[%clk 0:00:36.7]} 22. Bf3 {[%clk 0:00:31.4]} 22... Rd8 {[%clk 0:00:33.6]} 23. Qb3 {[%clk 0:00:26.1]} 23... Qg5 {[%clk 0:00:32.4]} 24. Re4 {[%clk 0:00:23.1]} 24... Bxh3 {[%clk 0:00:30.6]} 25. Rae1 {[%clk 0:00:21.4]} 25... Bf5 {[%clk 0:00:29.5]} 26. Re8+ {[%clk 0:00:19.3]} 26... Rxe8 {[%clk 0:00:28.5]} 27. Rxe8+ {[%clk 0:00:18.5]} 27... Rxe8 {[%clk 0:00:27.9]} 28. Be4 {[%clk 0:00:16.6]} 28... Bxe4 {[%clk 0:00:24.1]} 29. dxe4 {[%clk 0:00:15.2]} 29... Rxe4 {[%clk 0:00:23.8]} 30. Qc4 {[%clk 0:00:11.7]} 30... Re1+ {[%clk 0:00:21.5]} 31. Qf1 {[%clk 0:00:08.5]} 31... Rxf1+ {[%clk 0:00:19.2]} 32. Kxf1 {[%clk 0:00:08.5]} 32... Qc1+ {[%clk 0:00:19]} 33. Ke2 {[%clk 0:00:05.8]} 33... Qb1 {[%clk 0:00:18.4]} 34. Kf3 {[%clk 0:00:05.5]} 34... Qxa2 {[%clk 0:00:17.6]} 35. Kf4 {[%clk 0:00:04.5]} 35... Qe6 {[%clk 0:00:17.3]} 36. Kf3 {[%clk 0:00:02.8]} 36... Qf6+ {[%clk 0:00:16.8]} 0-1

[Event "Live Chess"]
[Site "Chess.com"]
[Date "2010.12.10"]
[Round "-"]
[White "hipposcottimus"]
[Black "deathrider2010"]
[Result "1-0"]
[CurrentPosition "1kr5/p1NR4/1pK5/7p/6p1/5P2/PP4PP/8 b - -"]
[Timezone "UTC"]
[ECO "B12"]
[ECOUrl "https://www.chess.com/openings/Caro-Kann-Defense-2.d4"]
[UTCDate "2010.12.10"]
[UTCTime "04:17:29"]
[WhiteElo "1654"]
[BlackElo "1479"]
[TimeControl "60"]
[Termination "hipposcottimus won on time"]
[StartTime "04:17:29"]
[EndDate "2010.12.10"]
[EndTime "04:19:28"]
[Link "https://www.chess.com/game/live/75793533"]

1. e4 {[%clk 0:01:00]} 1... c6 {[%clk 0:01:00]} 2. d4 {[%clk 0:00:58.8]} 2... b6 {[%clk 0:00:59.5]} 3. c4 {[%clk 0:00:57.3]} 3... Bb7 {[%clk 0:00:59.2]} 4. d5 {[%clk 0:00:56.7]} 4... cxd5 {[%clk 0:00:57.9]} 5. cxd5 {[%clk 0:00:56.4]} 5... d6 {[%clk 0:00:57.6]} 6. Nc3 {[%clk 0:00:56.2]} 6... e6 {[%clk 0:00:57.2]} 7. Bb5+ {[%clk 0:00:55]} 7... Nd7 {[%clk 0:00:54.9]} 8. Bc6 {[%clk 0:00:52.1]} 8... Bxc6 {[%clk 0:00:53.3]} 9. dxc6 {[%clk 0:00:51.5]} 9... Nb8 {[%clk 0:00:53]} 10. Qf3 {[%clk 0:00:48.5]} 10... Nxc6 {[%clk 0:00:51.5]} 11. e5 {[%clk 0:00:47.9]} 11... Qc7 {[%clk 0:00:51.1]} 12. exd6 {[%clk 0:00:47.1]} 12... Bxd6 {[%clk 0:00:50.3]} 13. Nge2 {[%clk 0:00:45.2]} 13... O-O-O {[%clk 0:00:49.1]} 14. Bf4 {[%clk 0:00:44.8]} 14... Bxf4 {[%clk 0:00:47.1]} 15. Nxf4 {[%clk 0:00:44.5]} 15... Nf6 {[%clk 0:00:45.1]} 16. O-O {[%clk 0:00:43.8]} 16... Nd5 {[%clk 0:00:44]} 17. Ncxd5 {[%clk 0:00:41.1]} 17... exd5 {[%clk 0:00:42.5]} 18. Rac1 {[%clk 0:00:38.7]} 18... Qd7 {[%clk 0:00:35.8]} 19. Rfd1 {[%clk 0:00:38.4]} 19... f6 {[%clk 0:00:32.4]} 20. Nxd5 {[%clk 0:00:37.5]} 20... g6 {[%clk 0:00:29.7]} 21. Qc3 {[%clk 0:00:36.2]} 21... Rhe8 {[%clk 0:00:27]} 22. Qxc6+ {[%clk 0:00:34.8]} 22... Qxc6 {[%clk 0:00:25.6]} 23. Rxc6+ {[%clk 0:00:34.5]} 23... Kb8 {[%clk 0:00:24.6]} 24. Rcc1 {[%clk 0:00:31]} 24... Rd7 {[%clk 0:00:21.5]} 25. Nxf6 {[%clk 0:00:30]} 25... Rxd1+ {[%clk 0:00:17.6]} 26. Rxd1 {[%clk 0:00:29.7]} 26... Rc8 {[%clk 0:00:15.1]} 27. Nd5 {[%clk 0:00:29.2]} 27... Rd8 {[%clk 0:00:14]} 28. f3 {[%clk 0:00:23.4]} 28... Rc8 {[%clk 0:00:12.6]} 29. Kf2 {[%clk 0:00:23.1]} 29... Rd8 {[%clk 0:00:11.8]} 30. Ke3 {[%clk 0:00:22.8]} 30... Rc8 {[%clk 0:00:11]} 31. Ke4 {[%clk 0:00:22.6]} 31... Re8+ {[%clk 0:00:10.1]} 32. Kd4 {[%clk 0:00:21.2]} 32... h6 {[%clk 0:00:09.6]} 33. Kc4 {[%clk 0:00:19.8]} 33... g5 {[%clk 0:00:09.3]} 34. Kb5 {[%clk 0:00:19.5]} 34... h5 {[%clk 0:00:07.7]} 35. Kc6 {[%clk 0:00:18.4]} 35... g4 {[%clk 0:00:06.9]} 36. Nc7 {[%clk 0:00:17]} 36... Rc8 {[%clk 0:00:04]} 37. Rd7 {[%clk 0:00:16.2]} 1-0

[Event "Live Chess"]
[Site "Chess.com"]
[Date "2010.12.10"]
[Round "-"]
[White "deathrider2010"]
[Black "hipposcottimus"]
[Result "1-0"]
[CurrentPosition "r2qr1k1/ppp2ppp/7n/2b5/2P5/1P1B1N1P/PBQ2PP1/1R3RK1 b - -"]
[Timezone "UTC"]
[ECO "A00"]
[ECOUrl "https://www.chess.com/openings/Saragossa-Opening-1...e5"]
[UTCDate "2010.12.10"]
[UTCTime "04:14:15"]
[WhiteElo "1483"]
[BlackElo "1650"]
[TimeControl "60"]
[Termination "deathrider2010 won on time"]
[StartTime "04:14:15"]
[EndDate "2010.12.10"]
[EndTime "04:15:47"]
[Link "https://www.chess.com/game/live/75792858"]

1. c3 {[%clk 0:01:00]} 1... e5 {[%clk 0:01:00]} 2. b3 {[%clk 0:00:59.6]} 2... e4 {[%clk 0:00:59.4]} 3. Bb2 {[%clk 0:00:59.3]} 3... d5 {[%clk 0:00:59.1]} 4. Qc2 {[%clk 0:00:58.7]} 4... Nf6 {[%clk 0:00:57.1]} 5. d3 {[%clk 0:00:58.3]} 5... Bf5 {[%clk 0:00:55.1]} 6. dxe4 {[%clk 0:00:57.2]} 6... Bxe4 {[%clk 0:00:53.4]} 7. Qd2 {[%clk 0:00:56.9]} 7... Bxb1 {[%clk 0:00:52.1]} 8. Rxb1 {[%clk 0:00:55.3]} 8... Nc6 {[%clk 0:00:49.6]} 9. Nf3 {[%clk 0:00:54.8]} 9... Be7 {[%clk 0:00:47.6]} 10. e3 {[%clk 0:00:54.4]} 10... O-O {[%clk 0:00:44.7]} 11. Bd3 {[%clk 0:00:54]} 11... d4 {[%clk 0:00:44]} 12. exd4 {[%clk 0:00:52.2]} 12... Re8 {[%clk 0:00:42.4]} 13. O-O {[%clk 0:00:50.7]} 13... Ng4 {[%clk 0:00:41.2]} 14. h3 {[%clk 0:00:45.1]} 14... Nh6 {[%clk 0:00:34.9]} 15. c4 {[%clk 0:00:44.1]} 15... Bb4 {[%clk 0:00:28.5]} 16. Qc2 {[%clk 0:00:40.7]} 16... Nxd4 {[%clk 0:00:03.3]} 17. Bxd4 {[%clk 0:00:37.9]} 17... Bc5 {[%clk 0:00:02.3]} 18. Bb2 {[%clk 0:00:34.9]} 1-0

[Event "Live Chess"]
[Site "Chess.com"]
[Date "2010.12.10"]
[Round "-"]
[White "mms78"]
[Black "hipposcottimus"]
[Result "1-0"]
[CurrentPosition "rn1Q1k2/p5bp/2p1Brp1/8/8/1Pq3P1/P4P1P/R3R1K1 b - -"]
[Timezone "UTC"]
[ECO "A21"]
[ECOUrl "https://www.chess.com/openings/English-Opening-Reversed-Sicilian-Variation"]
[UTCDate "2010.12.10"]
[UTCTime "04:10:52"]
[WhiteElo "1638"]
[BlackElo "1661"]
[TimeControl "60"]
[Termination "mms78 won by checkmate"]
[StartTime "04:10:52"]
[EndDate "2010.12.10"]
[EndTime "04:12:24"]
[Link "https://www.chess.com/game/live/75792274"]

1. c4 {[%clk 0:01:00]} 1... e5 {[%clk 0:01:00]} 2. Nc3 {[%clk 0:00:59.6]} 2... b5 {[%clk 0:00:59.6]} 3. g3 {[%clk 0:00:59.1]} 3... bxc4 {[%clk 0:00:58.6]} 4. Bg2 {[%clk 0:00:57.8]} 4... d5 {[%clk 0:00:58.3]} 5. e3 {[%clk 0:00:56.9]} 5... d4 {[%clk 0:00:56.4]} 6. exd4 {[%clk 0:00:55.9]} 6... Qxd4 {[%clk 0:00:56.1]} 7. Nge2 {[%clk 0:00:53.2]} 7... Qc5 {[%clk 0:00:51.8]} 8. Na4 {[%clk 0:00:49.6]} 8... Qe7 {[%clk 0:00:51.4]} 9. d3 {[%clk 0:00:47]} 9... Bd7 {[%clk 0:00:49.1]} 10. Nac3 {[%clk 0:00:45]} 10... Nf6 {[%clk 0:00:47.3]} 11. d4 {[%clk 0:00:43.1]} 11... g6 {[%clk 0:00:45.3]} 12. O-O {[%clk 0:00:41.8]} 12... exd4 {[%clk 0:00:43.1]} 13. Nxd4 {[%clk 0:00:39.9]} 13... Bg7 {[%clk 0:00:42.3]} 14. Bg5 {[%clk 0:00:38.9]} 14... Be6 {[%clk 0:00:41.5]} 15. Re1 {[%clk 0:00:37.6]} 15... O-O {[%clk 0:00:39.3]} 16. Nxe6 {[%clk 0:00:36.4]} 16... fxe6 {[%clk 0:00:39.1]} 17. Bxf6 {[%clk 0:00:33.9]} 17... Rxf6 {[%clk 0:00:35.8]} 18. Bd5 {[%clk 0:00:25.1]} 18... c6 {[%clk 0:00:32.2]} 19. Bxc4 {[%clk 0:00:24]} 19... Qb4 {[%clk 0:00:29.6]} 20. b3 {[%clk 0:00:21]} 20... Qxc3 {[%clk 0:00:27.6]} 21. Bxe6+ {[%clk 0:00:19.3]} 21... Kf8 {[%clk 0:00:25.9]} 22. Qd8# {[%clk 0:00:13.3]} 1-0

[Event "Live Chess"]
[Site "Chess.com"]
[Date "2010.12.10"]
[Round "-"]
[White "hipposcottimus"]
[Black "Zelrome"]
[Result "1-0"]
[CurrentPosition "8/pp3k1p/2p2p2/4p3/5q2/3R4/PPP2R2/5K2 b - -"]
[Timezone "UTC"]
[ECO "C41"]
[ECOUrl "https://www.chess.com/openings/Philidor-Defense-3.Bc4"]
[UTCDate "2010.12.10"]
[UTCTime "04:07:22"]
[WhiteElo "1670"]
[BlackElo "1800"]
[TimeControl "60"]
[Termination "hipposcottimus won on time"]
[StartTime "04:07:22"]
[EndDate "2010.12.10"]
[EndTime "04:09:35"]
[Link "https://www.chess.com/game/live/75791558"]

1. e4 {[%clk 0:01:00]} 1... e5 {[%clk 0:01:00]} 2. Nf3 {[%clk 0:00:58.3]} 2... d6 {[%clk 0:00:58.1]} 3. Bc4 {[%clk 0:00:58]} 3... Be6 {[%clk 0:00:55.7]} 4. Bd5 {[%clk 0:00:56.2]} 4... c6 {[%clk 0:00:53.4]} 5. Bb3 {[%clk 0:00:54.9]} 5... d5 {[%clk 0:00:50.6]} 6. d4 {[%clk 0:00:53.9]} 6... f6 {[%clk 0:00:45.9]} 7. dxe5 {[%clk 0:00:51.6]} 7... Nd7 {[%clk 0:00:35.6]} 8. exd5 {[%clk 0:00:49.3]} 8... Bxd5 {[%clk 0:00:33.6]} 9. Bxd5 {[%clk 0:00:48.9]} 9... Nxe5 {[%clk 0:00:30.9]} 10. Bf7+ {[%clk 0:00:37.7]} 10... Kxf7 {[%clk 0:00:28.7]} 11. Nxe5+ {[%clk 0:00:36.7]} 11... fxe5 {[%clk 0:00:26.8]} 12. Qf3+ {[%clk 0:00:35.6]} 12... Nf6 {[%clk 0:00:24.2]} 13. O-O {[%clk 0:00:34.3]} 13... Bc5 {[%clk 0:00:23.7]} 14. Bg5 {[%clk 0:00:33.3]} 14... Qd6 {[%clk 0:00:20.6]} 15. Bxf6 {[%clk 0:00:30.7]} 15... gxf6 {[%clk 0:00:18.8]} 16. Nc3 {[%clk 0:00:29]} 16... Rhe8 {[%clk 0:00:17.6]} 17. Ne4 {[%clk 0:00:28.1]} 17... Qe7 {[%clk 0:00:16.2]} 18. Ng5+ {[%clk 0:00:27.4]} 18... Kg6 {[%clk 0:00:13.9]} 19. Ne4 {[%clk 0:00:21.8]} 19... Bd6 {[%clk 0:00:12.1]} 20. Nxd6 {[%clk 0:00:20.5]} 20... Qxd6 {[%clk 0:00:11.7]} 21. h4 {[%clk 0:00:19.3]} 21... Qe6 {[%clk 0:00:11.3]} 22. Qg3+ {[%clk 0:00:18.3]} 22... Kf7 {[%clk 0:00:11]} 23. Rad1 {[%clk 0:00:16.8]} 23... Rg8 {[%clk 0:00:10.6]} 24. Qf3 {[%clk 0:00:14.5]} 24... Rxg2+ {[%clk 0:00:10.3]} 25. Qxg2 {[%clk 0:00:13.7]} 25... Rg8 {[%clk 0:00:09.8]} 26. Kh1 {[%clk 0:00:11.8]} 26... Rxg2 {[%clk 0:00:05.8]} 27. Kxg2 {[%clk 0:00:11.5]} 27... Qg4+ {[%clk 0:00:05.4]} 28. Kh1 {[%clk 0:00:11.2]} 28... Qh3+ {[%clk 0:00:05]} 29. Kg1 {[%clk 0:00:10]} 29... Qxh4 {[%clk 0:00:04.7]} 30. f3 {[%clk 0:00:09]} 30... Qg4+ {[%clk 0:00:04.4]} 31. Kf2 {[%clk 0:00:07.8]} 31... Qh3 {[%clk 0:00:03.7]} 32. Ke1 {[%clk 0:00:07.5]} 32... Qh2 {[%clk 0:00:03.4]} 33. Rf2 {[%clk 0:00:06]} 33... Qf4 {[%clk 0:00:03.1]} 34. Ke2 {[%clk 0:00:05.5]} 34... Qe4+ {[%clk 0:00:02.8]} 35. Kf1 {[%clk 0:00:05.2]} 35... Qf5 {[%clk 0:00:02.4]} 36. f4 {[%clk 0:00:04.4]} 36... Qxf4 {[%clk 0:00:02.1]} 37. Rd3 {[%clk 0:00:03.6]} 1-0

[Event "Live Chess"]
[Site "Chess.com"]
[Date "2010.12.10"]
[Round "-"]
[White "hipposcottimus"]
[Black "Velocity111"]
[Result "0-1"]
[CurrentPosition "7r/6pp/1kp2pb1/p3p3/2P5/2Kr2N1/PPN3PP/7R w - -"]
[Timezone "UTC"]
[ECO "B20"]
[ECOUrl "https://www.chess.com/openings/Sicilian-Defense"]
[UTCDate "2010.12.10"]
[UTCTime "04:05:27"]
[WhiteElo "1670"]
[BlackElo "2002"]
[TimeControl "60"]
[Termination "Velocity111 won by checkmate"]
[StartTime "04:05:27"]
[EndDate "2010.12.10"]
[EndTime "04:06:31"]
[Link "https://www.chess.com/game/live/75791183"]

1. e4 {[%clk 0:01:00]} 1... c5 {[%clk 0:01:00]} 2. Bb5 {[%clk 0:00:58]} 2... Nc6 {[%clk 0:00:58.2]} 3. Bxc6 {[%clk 0:00:57.1]} 3... bxc6 {[%clk 0:00:58.2]} 4. c4 {[%clk 0:00:56.7]} 4... d5 {[%clk 0:00:57.2]} 5. d3 {[%clk 0:00:56.5]} 5... dxe4 {[%clk 0:00:55.9]} 6. dxe4 {[%clk 0:00:54.9]} 6... Qxd1+ {[%clk 0:00:55.9]} 7. Kxd1 {[%clk 0:00:54.6]} 7... Nf6 {[%clk 0:00:54.1]} 8. Ne2 {[%clk 0:00:54.3]} 8... Nxe4 {[%clk 0:00:53.1]} 9. Bf4 {[%clk 0:00:54]} 9... Nxf2+ {[%clk 0:00:51.9]} 10. Kd2 {[%clk 0:00:52.2]} 10... Nxh1 {[%clk 0:00:51.9]} 11. Nbc3 {[%clk 0:00:51.9]} 11... f6 {[%clk 0:00:51.9]} 12. Be3 {[%clk 0:00:50.6]} 12... e5 {[%clk 0:00:51.9]} 13. Rxh1 {[%clk 0:00:49.2]} 13... Be6 {[%clk 0:00:49.3]} 14. Ne4 {[%clk 0:00:42.7]} 14... O-O-O+ {[%clk 0:00:48.6]} 15. Kc3 {[%clk 0:00:40.6]} 15... Kc7 {[%clk 0:00:46.1]} 16. Bxc5 {[%clk 0:00:38.9]} 16... Bxc5 {[%clk 0:00:44.5]} 17. Nxc5 {[%clk 0:00:38.6]} 17... Bf5 {[%clk 0:00:43.5]} 18. Na6+ {[%clk 0:00:37.2]} 18... Kb6 {[%clk 0:00:42.3]} 19. Nb4 {[%clk 0:00:36.9]} 19... a5 {[%clk 0:00:37.5]} 20. Ng3 {[%clk 0:00:36.6]} 20... Bg6 {[%clk 0:00:36]} 21. Nc2 {[%clk 0:00:32.9]} 21... Rd3# {[%clk 0:00:34.4]} 0-1

[Event "Live Chess"]
[Site "Chess.com"]
[Date "2010.12.10"]
[Round "-"]
[White "hipposcottimus"]
[Black "rooktoorook"]
[Result "1-0"]
[CurrentPosition "2r5/4bk2/5p1p/4pP2/3n4/8/5NPP/1R4K1 b - -"]
[Timezone "UTC"]
[ECO "B00"]
[ECOUrl "https://www.chess.com/openings/Owens-Defense"]
[UTCDate "2010.12.10"]
[UTCTime "04:01:36"]
[WhiteElo "1672"]
[BlackElo "1493"]
[TimeControl "60"]
[Termination "hipposcottimus won on time"]
[StartTime "04:01:36"]
[EndDate "2010.12.10"]
[EndTime "04:03:50"]
[Link "https://www.chess.com/game/live/75790473"]

1. e4 {[%clk 0:01:00]} 1... b6 {[%clk 0:01:00]} 2. Nf3 {[%clk 0:00:59.6]} 2... Bb7 {[%clk 0:00:59.5]} 3. Nc3 {[%clk 0:00:58.2]} 3... c6 {[%clk 0:00:59.1]} 4. d4 {[%clk 0:00:57.7]} 4... d6 {[%clk 0:00:58.6]} 5. Be3 {[%clk 0:00:53.4]} 5... h6 {[%clk 0:00:57.9]} 6. Nd2 {[%clk 0:00:53.1]} 6... e6 {[%clk 0:00:57.3]} 7. f4 {[%clk 0:00:52.8]} 7... d5 {[%clk 0:00:56.6]} 8. Be2 {[%clk 0:00:52.6]} 8... dxe4 {[%clk 0:00:55.5]} 9. Ndxe4 {[%clk 0:00:52]} 9... c5 {[%clk 0:00:54.8]} 10. O-O {[%clk 0:00:50.9]} 10... cxd4 {[%clk 0:00:53.5]} 11. Bxd4 {[%clk 0:00:50.6]} 11... Bxe4 {[%clk 0:00:51.8]} 12. Nxe4 {[%clk 0:00:48.7]} 12... Nf6 {[%clk 0:00:50.2]} 13. Bxf6 {[%clk 0:00:43.7]} 13... Qxd1 {[%clk 0:00:48.3]} 14. Raxd1 {[%clk 0:00:43.4]} 14... gxf6 {[%clk 0:00:47.4]} 15. Nxf6+ {[%clk 0:00:42.5]} 15... Ke7 {[%clk 0:00:45.9]} 16. Ne4 {[%clk 0:00:42.2]} 16... Bg7 {[%clk 0:00:44]} 17. f5 {[%clk 0:00:40.4]} 17... e5 {[%clk 0:00:41.5]} 18. c3 {[%clk 0:00:35.3]} 18... f6 {[%clk 0:00:40.7]} 19. Bc4 {[%clk 0:00:34.3]} 19... Nc6 {[%clk 0:00:39]} 20. Bb3 {[%clk 0:00:34]} 20... Rad8 {[%clk 0:00:37.2]} 21. Rde1 {[%clk 0:00:31.9]} 21... Rd3 {[%clk 0:00:34.9]} 22. Nf2 {[%clk 0:00:29.6]} 22... Rd2 {[%clk 0:00:33.5]} 23. Bc4 {[%clk 0:00:27.1]} 23... Rxb2 {[%clk 0:00:31.9]} 24. Ne4 {[%clk 0:00:23.1]} 24... Na5 {[%clk 0:00:30.3]} 25. Ba6 {[%clk 0:00:21.4]} 25... Rxa2 {[%clk 0:00:28]} 26. Bc4 {[%clk 0:00:19.5]} 26... Nxc4 {[%clk 0:00:26.8]} 27. Rb1 {[%clk 0:00:18.6]} 27... Rc2 {[%clk 0:00:24]} 28. Rbd1 {[%clk 0:00:17.9]} 28... Rxc3 {[%clk 0:00:22.4]} 29. Nf2 {[%clk 0:00:17.2]} 29... Rc2 {[%clk 0:00:20.8]} 30. Rfe1 {[%clk 0:00:14.1]} 30... Nd6 {[%clk 0:00:17.2]} 31. Rd4 {[%clk 0:00:13.6]} 31... Nb5 {[%clk 0:00:13.8]} 32. Rd5 {[%clk 0:00:12.1]} 32... Rc5 {[%clk 0:00:12.4]} 33. Rd2 {[%clk 0:00:10.4]} 33... Nd4 {[%clk 0:00:10.3]} 34. Rb2 {[%clk 0:00:09.8]} 34... Bf8 {[%clk 0:00:07.1]} 35. Ra2 {[%clk 0:00:09.4]} 35... Kf7 {[%clk 0:00:05.6]} 36. Rxa7+ {[%clk 0:00:08.2]} 36... Be7 {[%clk 0:00:05.2]} 37. Rb7 {[%clk 0:00:07.5]} 37... Rhc8 {[%clk 0:00:03.3]} 38. Rxb6 {[%clk 0:00:07]} 38... Rc1 {[%clk 0:00:02.1]} 39. Rb1 {[%clk 0:00:06.7]} 39... Rxb1 {[%clk 0:00:00.8]} 40. Rxb1 {[%clk 0:00:05.4]} 1-0

[Event "Live Chess"]
[Site "Chess.com"]
[Date "2010.12.10"]
[Round "-"]
[White "teribahendi"]
[Black "hipposcottimus"]
[Result "1-0"]
[CurrentPosition "3r2k1/pp4pp/2nbP3/6p1/4Q3/7P/PPP2PP1/R4RK1 b - -"]
[Timezone "UTC"]
[ECO "B01"]
[ECOUrl "https://www.chess.com/openings/Scandinavian-Defense-Blackburne-Kloosterboer-Gambit"]
[UTCDate "2010.12.10"]
[UTCTime "03:57:07"]
[WhiteElo "2030"]
[BlackElo "1668"]
[TimeControl "60"]
[Termination "teribahendi won on time"]
[StartTime "03:57:07"]
[EndDate "2010.12.10"]
[EndTime "03:57:51"]
[Link "https://www.chess.com/game/live/75789409"]

1. e4 {[%clk 0:01:00]} 1... d5 {[%clk 0:01:00]} 2. exd5 {[%clk 0:00:58.4]} 2... c6 {[%clk 0:00:59.6]} 3. Nc3 {[%clk 0:00:58]} 3... cxd5 {[%clk 0:00:58.4]} 4. Bb5+ {[%clk 0:00:57.6]} 4... Bd7 {[%clk 0:00:56.9]} 5. Bxd7+ {[%clk 0:00:57.3]} 5... Qxd7 {[%clk 0:00:56.6]} 6. Nf3 {[%clk 0:00:57]} 6... e6 {[%clk 0:00:53.7]} 7. d4 {[%clk 0:00:56.6]} 7... Bd6 {[%clk 0:00:53.4]} 8. O-O {[%clk 0:00:53.6]} 8... Nf6 {[%clk 0:00:53]} 9. h3 {[%clk 0:00:53.1]} 9... O-O {[%clk 0:00:52.7]} 10. Bg5 {[%clk 0:00:52.2]} 10... Ne4 {[%clk 0:00:51.1]} 11. Nxe4 {[%clk 0:00:48.3]} 11... dxe4 {[%clk 0:00:50.7]} 12. Ne5 {[%clk 0:00:46.5]} 12... f6 {[%clk 0:00:50.5]} 13. Nxd7 {[%clk 0:00:45.1]} 13... fxg5 {[%clk 0:00:50.2]} 14. Nxf8 {[%clk 0:00:43.6]} 14... Kxf8 {[%clk 0:00:49.9]} 15. d5 {[%clk 0:00:43.2]} 15... Kg8 {[%clk 0:00:49.2]} 16. dxe6 {[%clk 0:00:42.4]} 16... Nc6 {[%clk 0:00:48.9]} 17. Qd5 {[%clk 0:00:41.9]} 17... Rd8 {[%clk 0:00:44.5]} 18. Qxe4 {[%clk 0:00:41]} 1-0

[Event "Live Chess"]
[Site "Chess.com"]
[Date "2010.12.10"]
[Round "-"]
[White "hipposcottimus"]
[Black "teribahendi"]
[Result "0-1"]
[CurrentPosition "5b1r/ppk2pp1/5q2/4np2/2P2Q1p/1P6/P4PPP/R1Br2K1 w - -"]
[Timezone "UTC"]
[ECO "B01"]
[ECOUrl "https://www.chess.com/openings/Scandinavian-Defense-Modern-Variation"]
[UTCDate "2010.12.10"]
[UTCTime "03:54:44"]
[WhiteElo "1668"]
[BlackElo "2030"]
[TimeControl "60"]
[Termination "teribahendi won by checkmate"]
[StartTime "03:54:44"]
[EndDate "2010.12.10"]
[EndTime "03:55:59"]
[Link "https://www.chess.com/game/live/75789071"]

1. e4 {[%clk 0:01:00]} 1... d5 {[%clk 0:01:00]} 2. exd5 {[%clk 0:00:58.9]} 2... Nf6 {[%clk 0:00:59.7]} 3. Bc4 {[%clk 0:00:58.7]} 3... Nxd5 {[%clk 0:00:57.6]} 4. Bxd5 {[%clk 0:00:58.4]} 4... Qxd5 {[%clk 0:00:57.3]} 5. Nc3 {[%clk 0:00:57.9]} 5... Qe6+ {[%clk 0:00:56]} 6. Nce2 {[%clk 0:00:56.2]} 6... h5 {[%clk 0:00:55.4]} 7. Nf3 {[%clk 0:00:55.6]} 7... h4 {[%clk 0:00:54.9]} 8. O-O {[%clk 0:00:55.2]} 8... Bd7 {[%clk 0:00:54.2]} 9. Re1 {[%clk 0:00:54.6]} 9... Bc6 {[%clk 0:00:53.7]} 10. d4 {[%clk 0:00:54.3]} 10... Qg6 {[%clk 0:00:53.1]} 11. d5 {[%clk 0:00:53.4]} 11... Bb5 {[%clk 0:00:51.7]} 12. Ned4 {[%clk 0:00:51]} 12... Bd7 {[%clk 0:00:50]} 13. Ne5 {[%clk 0:00:50.5]} 13... Qd6 {[%clk 0:00:48.4]} 14. Nxd7 {[%clk 0:00:50.2]} 14... Nxd7 {[%clk 0:00:47]} 15. c4 {[%clk 0:00:49.9]} 15... O-O-O {[%clk 0:00:43.4]} 16. Nf5 {[%clk 0:00:49.2]} 16... Qf6 {[%clk 0:00:40.6]} 17. Qf3 {[%clk 0:00:48.5]} 17... Ne5 {[%clk 0:00:33.2]} 18. Qf4 {[%clk 0:00:46.2]} 18... Nd3 {[%clk 0:00:30.4]} 19. Qf3 {[%clk 0:00:45]} 19... Nxe1 {[%clk 0:00:29.3]} 20. Qf4 {[%clk 0:00:42.6]} 20... Nd3 {[%clk 0:00:27.1]} 21. Qf3 {[%clk 0:00:42.3]} 21... Ne5 {[%clk 0:00:26.1]} 22. Qf4 {[%clk 0:00:40.8]} 22... e6 {[%clk 0:00:24.2]} 23. d6 {[%clk 0:00:40.2]} 23... exf5 {[%clk 0:00:21.1]} 24. dxc7 {[%clk 0:00:39.5]} 24... Kxc7 {[%clk 0:00:20.5]} 25. b3 {[%clk 0:00:37.7]} 25... Rd1# {[%clk 0:00:20]} 0-1